bitfinex-derivatives/quotes_BTCF0:USTF0_20250426
["timestamp","ask_amount","ask_price","bid_price","bid_amount"]
[1745628324310,0.4187669,94698.0,94691.0,0.2110823]
[1745628324503,0.5210801,94692.0,94691.0,0.2110823]
[1745628325005,0.5570801,94692.0,94691.0,0.2110823]
[1745628325595,0.6039801,94692.0,94691.0,0.2110823]
[1745628325800,0.6109801,94692.0,94691.0,0.2110823]
[1745628326608,0.3999,94692.0,94691.0,0.23574263]
[1745628328498,0.3639,94692.0,94691.0,0.23574263]
[1745628328714,0.096,94692.0,94691.0,0.34534263]
[1745628329097,0.016,94692.0,94691.0,0.45095063]
[1745628329508,0.0358,94697.0,94696.0,0.2110712]
[1745628329703,0.0958,94697.0,94696.0,0.5718712]
[1745628330505,0.0958,94697.0,94696.0,0.6445712]
[1745628330912,0.05757341,94697.0,94696.0,0.6445712]
[1745628331208,0.0384,94708.0,94707.0,0.2110466]
[1745628331408,0.0784,94708.0,94707.0,0.5718466]
[1745628332606,0.0844,94708.0,94707.0,0.5728466]
[1745628333013,0.0884,94708.0,94707.0,0.5728466]
[1745628334402,0.0884,94708.0,94707.0,0.6122466]
[1745628334598,0.0824,94708.0,94707.0,0.6122466]
[1745628335203,0.0784,94708.0,94707.0,0.6122466]
[1745628335404,0.0784,94708.0,94707.0,0.6162466]
[1745628336209,0.2894444,94708.0,94707.0,0.3658]
[1745628336399,0.2894444,94708.0,94707.0,0.005]
[1745628336400,0.6182444,94708.0,94707.0,0.005]
[1745628336813,0.6182444,94708.0,94707.0,0.2160466]
[1745628337411,0.4072,94708.0,94707.0,0.2160466]
[1745628340307,0.4451,94708.0,94707.0,0.2160466]
[1745628342915,0.4063,94708.0,94707.0,0.2160466]
[1745628343312,0.413546,94736.0,94717.0,0.052756]
[1745628343613,0.00162,94720.0,94719.0,0.2637748]
[1745628343803,0.00162,94720.0,94719.0,0.3372748]
[1745628345115,0.2126377,94720.0,94719.0,0.3372748]
[1745628345314,0.2126377,94720.0,94719.0,0.3402748]
[1745628348015,0.0052,94728.0,94719.0,0.0765]
[1745628348212,0.1852,94728.0,94727.0,0.5718021]
[1745628348413,0.036,94750.0,94733.0,0.0527471]
[1745628348618,0.036,94750.0,94727.0,0.3608]
[1745628348619,0.366,94750.0,94749.0,0.2109531]
[1745628349117,0.366,94750.0,94749.0,0.5717531]
[1745628349319,0.1839,94750.0,94749.0,0.5717531]
[1745628349808,0.1839,94750.0,94749.0,0.67106099]
[1745628350012,0.1839,94750.0,94749.0,0.63556099]
[1745628350213,1.0156509,94750.0,94749.0,0.02460789]
[1745628350517,0.2637018,94747.0,94746.0,0.0527399]
[1745628350707,0.580962,94747.0,94746.0,0.2636997]
[1745628350907,0.4439,94747.0,94746.0,0.28817832]
[1745628351616,0.6548575,94747.0,94746.0,0.28817832]
[1745628352014,0.4479,94747.0,94746.0,0.28817832]
[1745628352221,0.4519,94747.0,94746.0,0.28817832]
[1745628352620,0.378,94747.0,94746.0,0.28817832]
[1745628352918,0.118,94747.0,94746.0,0.64897832]
[1745628353311,0.118,94747.0,94746.0,0.72127832]
[1745628355427,0.0408839,94747.0,94746.0,0.72127832]
[1745628355623,0.0366,94750.0,94749.0,0.2109531]
[1745628355925,0.03,94750.0,94749.0,0.2109531]
[1745628356227,0.0013,94751.0,94750.0,0.2109509]
[1745628356523,0.0113,94751.0,94750.0,0.2109509]
[1745628357025,0.0013,94751.0,94750.0,0.2109509]
[1745628357619,0.0093,94751.0,94750.0,0.2109509]
[1745628359938,0.0063,94751.0,94750.0,0.2109509]
[1745628360127,0.0013,94751.0,94750.0,0.2119509]
[1745628360433,1e-07,94751.0,94750.0,0.41922301]
[1745628360629,0.0366,94770.0,94769.0,0.2109086]
[1745628360839,0.0366,94770.0,94769.0,0.5717086]
[1745628360840,0.2921,94770.0,94769.0,0.5717086]
[1745628361034,0.5030063,94770.0,94769.0,0.5717086]
[1745628361236,0.5030063,94770.0,94769.0,0.3608]
[1745628362436,0.5030063,94770.0,94769.0,0.5717086]
[1745628362937,0.5030063,94770.0,94769.0,0.3608]
[1745628363138,0.5040063,94770.0,94769.0,0.5717086]
[1745628363437,0.50418912,94770.0,94769.0,0.5717086]
[1745628363634,0.50518912,94770.0,94769.0,0.5717086]
[1745628364434,0.29428282,94770.0,94769.0,0.5717086]
[1745628365032,0.50518912,94770.0,94769.0,0.5717086]
[1745628365233,0.29428282,94770.0,94769.0,0.5717086]
[1745628366035,0.50518912,94770.0,94769.0,0.5717086]
[1745628366434,0.29428282,94770.0,94769.0,0.5717086]
[1745628367730,0.29428282,94770.0,94769.0,0.2109086]
[1745628372933,0.50518912,94770.0,94769.0,0.2109086]
[1745628374437,0.29428282,94770.0,94769.0,0.2109086]
[1745628375546,0.50518912,94770.0,94769.0,0.2109086]
[1745628376048,0.29428282,94770.0,94769.0,0.2109086]
[1745628376250,0.33569531,94780.0,94779.0,0.2108863]
[1745628376439,0.28,94780.0,94779.0,0.2108863]
[1745628376941,0.28,94780.0,94779.0,0.2476863]
[1745628377538,0.3202,94780.0,94779.0,0.2827863]
[1745628377741,0.3222,94780.0,94779.0,0.2827863]
[1745628378144,0.3602,94780.0,94779.0,0.2827863]
[1745628379645,0.3212,94780.0,94779.0,0.2827863]
[1745628381149,0.284,94780.0,94779.0,0.2827863]
[1745628381447,0.3227,94780.0,94779.0,0.2827863]
[1745628386347,0.1127,94780.0,94779.0,0.2827863]
[1745628387638,0.074,94780.0,94779.0,0.2827863]
[1745628388248,0.1134,94780.0,94779.0,0.2827863]
[1745628388850,0.0052,94788.0,94787.0,0.2108685]
[1745628389144,0.0652,94788.0,94787.0,0.5716685]
[1745628389347,0.0052,94788.0,94787.0,0.5716685]
[1745628389548,0.0052,94788.0,94787.0,0.6471685]
[1745628390047,0.0082,94788.0,94787.0,0.6471685]
[1745628390648,0.0052,94788.0,94787.0,0.6471685]
[1745628394843,0.0052,94788.0,94787.0,0.2863685]
[1745628395043,0.0052,94788.0,94787.0,0.6471685]
[1745628395457,0.3608,94850.0,94788.0,0.1057]
[1745628395751,0.3608,94850.0,94847.0,0.2107351]
[1745628395950,0.2552,94848.0,94847.0,0.2107351]
[1745628396250,1.305792,94848.0,94847.0,0.2107351]
[1745628396658,0.4232,94848.0,94847.0,0.2107351]
[1745628397353,0.5041,94848.0,94847.0,0.2107351]
[1745628397552,0.7148335,94848.0,94836.0,0.0526893]
[1745628397756,0.5041,94848.0,94847.0,0.2107351]
[1745628398357,0.3361,94848.0,94847.0,0.2107351]
[1745628398542,0.3411,94848.0,94847.0,0.2107351]
[1745628398948,0.3311,94848.0,94847.0,0.2107351]
[1745628399556,0.3311,94848.0,94847.0,0.23212698]
[1745628400860,1.283972,94848.0,94826.0,0.0386]
[1745628401058,0.2107694,94832.0,94828.0,0.2107764]
[1745628401357,0.079,94831.0,94830.0,0.2107729]
[1745628401561,0.399,94831.0,94830.0,0.2107729]
[1745628402461,0.567,94831.0,94830.0,0.2107729]
[1745628403161,0.567,94831.0,94830.0,0.2137729]
[1745628403360,0.567,94831.0,94830.0,0.5775729]
[1745628403665,1e-08,94848.0,94847.0,0.2107351]
[1745628403862,0.18000001,94848.0,94847.0,0.5715351]
[1745628404659,0.21940001,94848.0,94847.0,0.5715351]
[1745628405057,0.42620001,94848.0,94847.0,0.5715351]
[1745628405263,0.63693291,94848.0,94847.0,0.5715351]
[1745628405465,0.63793291,94848.0,94847.0,0.5715351]
[1745628406160,0.63693291,94848.0,94847.0,0.5715351]
[1745628407355,0.42620001,94848.0,94847.0,0.5715351]
[1745628407555,0.63693291,94848.0,94847.0,0.5715351]
[1745628409963,0.42620001,94848.0,94847.0,0.5715351]
[1745628410165,0.42620001,94848.0,94847.0,0.9696351]
[1745628410369,0.19,94867.0,94866.0,0.2106929]
[1745628410557,0.0769,94870.0,94869.0,0.2106863]
[1745628410863,0.2969,94870.0,94869.0,0.2106863]
[1745628411066,0.4649,94870.0,94866.0,0.3608]
[1745628411463,0.4649,94870.0,94869.0,0.2106863]
[1745628411858,0.433,94870.0,94869.0,0.2106863]
[1745628412065,0.265,94870.0,94869.0,0.2106863]
[1745628412268,0.26,94870.0,94869.0,0.23245949]
[1745628412461,0.263,94870.0,94869.0,0.23245949]
[1745628412969,0.3034,94870.0,94869.0,0.23245949]
[1745628413264,0.4714,94870.0,94869.0,0.23245949]
[1745628413467,0.4684,94870.0,94869.0,0.23245949]
[1745628414366,0.4664,94870.0,94869.0,0.23245949]
[1745628416461,0.388,94870.0,94869.0,0.23245949]
[1745628416657,0.388,94870.0,94869.0,0.27045949]
[1745628417359,0.22,94870.0,94869.0,0.27045949]
[1745628417960,0.22,94870.0,94869.0,0.27345949]
[1745628418260,0.22,94870.0,94869.0,0.27645949]
[1745628418661,0.257,94870.0,94869.0,0.27645949]
[1745628421467,0.467684,94870.0,94869.0,0.02777319]
[1745628421665,0.2945,94870.0,94869.0,0.23845949]
[1745628422175,0.4625,94870.0,94869.0,0.23845949]
[1745628422861,0.4625,94870.0,94869.0,0.27605949]
[1745628423061,0.4625,94870.0,94869.0,0.31235949]
[1745628424176,0.2945,94870.0,94869.0,0.31235949]
[1745628425967,0.168,94875.0,94870.0,0.210684]
[1745628425968,0.00126001,94871.0,94870.0,0.210684]
[1745628426266,0.47926001,94871.0,94870.0,0.210684]
[1745628426465,0.47926001,94871.0,94870.0,0.249284]
[1745628426968,0.47926001,94871.0,94870.0,0.288384]
[1745628427362,0.47926001,94871.0,94870.0,0.291384]
[1745628428569,0.47926001,94871.0,94870.0,0.293384]
[1745628428774,0.41,94890.0,94870.0,0.28997211]
[1745628428974,0.22,94890.0,94889.0,0.3608]
[1745628429194,0.3608,94918.0,94889.0,0.3608]
[1745628429377,0.31,94918.0,94917.0,0.2105797]
[1745628429570,0.29774178,94918.0,94917.0,0.2105797]
[1745628429877,0.0013,94931.0,94930.0,0.2105509]
[1745628430078,0.5193,94931.0,94930.0,0.23259457]
[1745628430277,0.62464,94931.0,94930.0,0.02204367]
[1745628430473,0.66374,94931.0,94923.0,0.0526413]
[1745628430677,0.5584,94931.0,94928.0,0.2105532]
[1745628430983,0.5584,94931.0,94930.0,0.2105509]
[1745628431166,0.596,94931.0,94930.0,0.2105509]
[1745628432067,0.597,94931.0,94930.0,0.2105509]
[1745628432468,0.596,94931.0,94930.0,0.2105509]
[1745628432674,0.597,94931.0,94930.0,0.2105509]
[1745628432967,0.597,94931.0,94911.0,0.0375]
[1745628433168,0.597,94931.0,94919.0,0.0526436]
[1745628433478,0.597,94931.0,94925.0,0.2105602]
[1745628433675,0.597,94931.0,94926.0,0.2105589]
[1745628433974,0.5203,94931.0,94929.0,0.3608]
[1745628434277,0.5223,94931.0,94930.0,0.2489509]
[1745628434571,0.5213,94931.0,94930.0,0.3229509]
[1745628434775,0.5223,94931.0,94930.0,0.3229509]
[1745628435170,0.5213,94931.0,94930.0,0.3229509]
[1745628435374,0.5223,94931.0,94930.0,0.3229509]
[1745628435767,0.5213,94931.0,94930.0,0.3229509]
[1745628435967,0.5223,94931.0,94930.0,0.3229509]
[1745628436570,0.5213,94931.0,94930.0,0.3229509]
[1745628437078,0.5213,94931.0,94930.0,0.2489509]
[1745628437470,0.5213,94931.0,94930.0,0.2864509]
[1745628439769,0.5213,94931.0,94930.0,0.2489509]
[1745628439969,0.5213,94931.0,94929.0,0.3608]
[1745628440179,0.0761,94930.0,94929.0,0.5713514]
[1745628440475,0.3961,94930.0,94929.0,0.5713514]
[1745628441172,0.5641,94930.0,94929.0,0.5713514]
[1745628442384,0.5641,94930.0,94929.0,0.2105514]
[1745628442878,0.56435701,94930.0,94929.0,0.2105514]
[1745628443083,0.56535701,94930.0,94929.0,0.2461514]
[1745628443579,0.56535701,94930.0,94929.0,0.0356]
[1745628444174,0.56535701,94930.0,94928.0,0.3608]
[1745628444787,0.56535701,94930.0,94928.0,0.5713547]
[1745628445082,0.56535701,94930.0,94929.0,0.2105531]
[1745628445276,0.56535701,94930.0,94928.0,0.3608]
[1745628445584,0.56535701,94930.0,94928.0,0.5713547]
[1745628445879,0.56535701,94930.0,94928.0,0.3608]
[1745628446084,0.56535701,94930.0,94929.0,0.2105531]
[1745628446280,0.56535701,94930.0,94929.0,0.2474531]
[1745628447078,0.56535701,94930.0,94929.0,0.2840531]
[1745628453782,0.56535701,94930.0,94929.0,0.0369]
[1745628454386,0.56535701,94930.0,94929.0,0.01845877]
[1745628454688,0.56535701,94930.0,94928.0,0.3608]
[1745628454888,0.56535701,94930.0,94897.0,0.20727211]
[1745628454889,0.1745,94929.0,94909.0,0.3608]
[1745628455086,0.3608,94921.0,94909.0,0.0195031]
[1745628455283,0.0707,94920.0,94902.0,0.0526532]
[1745628455588,0.2105773,94919.0,94907.0,0.2106017]
[1745628455789,0.5105773,94919.0,94908.0,0.2105994]
[1745628455991,0.0707,94918.0,94910.0,0.2105937]
[1745628456186,0.5487,94918.0,94910.0,0.2105937]
[1745628456392,0.2105826,94916.0,94911.0,0.2105929]
[1745628456587,0.0707,94915.0,94913.0,0.2105874]
[1745628456793,0.3707,94915.0,94913.0,0.2105874]
[1745628457086,0.5387,94915.0,94914.0,0.2105864]
[1745628457394,0.5387,94915.0,94912.0,0.2105892]
[1745628457984,0.5387,94915.0,94913.0,0.003]
[1745628458482,0.5387,94915.0,94913.0,0.2105873]
[1745628458788,0.5387,94915.0,94912.0,0.003]
[1745628458789,0.7492862,94915.0,94912.0,0.003]
[1745628459588,0.5387,94915.0,94913.0,0.2105886]
[1745628459787,0.5387,94915.0,94913.0,0.2135886]
[1745628459996,0.5387,94915.0,94913.0,0.003]
[1745628460181,0.2387,94915.0,94913.0,0.006]
[1745628460687,0.06872,94940.0,94915.0,0.0526458]
[1745628460995,0.0358,94936.0,94935.0,0.2105398]
[1745628461589,0.0358,94936.0,94935.0,0.2822398]
[1745628461785,0.0359,94937.0,94936.0,0.2105376]
[1745628461986,0.0359,94937.0,94936.0,0.2823376]
[1745628462181,0.2039,94937.0,94936.0,0.2823376]
[1745628462986,0.168,94937.0,94936.0,0.2823376]
[1745628463387,0.14322,94954.0,94936.0,0.0718]
[1745628463587,0.10712,94954.0,94953.0,0.2104999]
[1745628463890,0.06872,94966.0,94960.0,0.2104844]
[1745628464096,0.06872,94966.0,94960.0,0.168]
[1745628464288,0.0202978,94976.0,94975.0,0.2104511]
[1745628464489,0.0202978,94976.0,94972.0,0.2104572]
[1745628464686,0.0202978,94976.0,94973.0,0.2104551]
[1745628464881,0.0202978,94976.0,94972.0,0.0526141]
[1745628465087,0.0202978,94976.0,94975.0,0.2104511]
[1745628465287,0.1,95000.0,94977.0,0.2104467]
[1745628465486,0.1,95000.0,94988.0,0.2104223]
[1745628465690,0.1,95000.0,94988.0,0.5712223]
[1745628466192,0.0578002,94998.0,94988.0,0.7392221]
[1745628466394,0.0382,94990.0,94989.0,0.2837193]
[1745628468195,0.0382,94990.0,94989.0,0.4517193]
[1745628468903,0.0412,94990.0,94989.0,0.4517193]
[1745628469092,0.0452,94990.0,94989.0,0.2837193]
[1745628469392,0.007,94990.0,94989.0,0.2837193]
[1745628469598,0.0436,94990.0,94989.0,0.2837193]
[1745628470293,0.0436,94990.0,94989.0,0.4517193]
[1745628471187,0.0436,94990.0,94989.0,0.2837193]
[1745628471890,0.0436,94990.0,94989.0,0.0733]
[1745628472198,0.0436,94990.0,94989.0,0.2837201]
[1745628473197,0.007,94990.0,94989.0,0.4517201]
[1745628479690,0.0013,95021.0,94989.0,1.122946]
[1745628479998,0.2460869,95004.0,95003.0,0.3608]
[1745628480300,0.2104179,94990.0,94989.0,0.0753]
[1745628480501,0.2104027,94997.0,94989.0,0.0753]
[1745628480804,0.0357,94993.0,94989.0,0.0783]
[1745628481201,0.2104135,94992.0,94989.0,0.0783]
[1745628481398,0.0728,94993.0,94989.0,0.1309049]
[1745628481594,0.0371,94993.0,94992.0,0.2104135]
[1745628482192,0.0371,94993.0,94989.0,0.0753]
[1745628482492,0.2104157,94991.0,94990.0,0.0384]
[1745628482897,0.2487157,94991.0,94990.0,0.2488179]
[1745628483102,0.2104179,94990.0,94989.0,0.002]
[1745628483399,0.3523939,94990.0,94989.0,0.006]
[1745628483601,0.3906939,94990.0,94989.0,0.003]
[1745628484099,0.210429,94985.0,94980.0,0.2104399]
[1745628484692,0.210429,94985.0,94978.0,0.2852443]
[1745628485695,0.210429,94985.0,94978.0,0.0748]
[1745628485897,0.2104578,94972.0,94971.0,0.0387]
[1745628486199,0.2104666,94968.0,94956.0,0.25989521]
[1745628486398,0.2104666,94968.0,94957.0,0.0747]
[1745628486602,0.2104666,94968.0,94967.0,0.02441602]
[1745628488203,0.2104666,94968.0,94967.0,0.02541602]
[1745628488703,0.2104666,94968.0,94967.0,0.02641602]
[1745628489298,0.2104666,94968.0,94967.0,0.02741602]
[1745628489700,0.2104666,94968.0,94967.0,0.02641602]
[1745628489895,0.2104666,94968.0,94967.0,0.23788482]
[1745628490095,0.2104666,94968.0,94967.0,0.02741602]
[1745628491396,0.2104666,94968.0,94967.0,0.00826496]
[1745628492304,0.2463666,94968.0,94967.0,0.00726496]
[1745628494105,0.6071666,94968.0,94967.0,0.00726496]
[1745628494408,0.6071666,94968.0,94967.0,0.00526496]
[1745628496723,0.2105265,94941.0,94940.0,0.00105329]
[1745628496903,0.5713265,94941.0,94940.0,0.00105329]
[1745628497102,0.7393265,94941.0,94940.0,0.00105329]
[1745628497815,0.7752265,94941.0,94940.0,0.00105329]
[1745628498004,0.7752265,94941.0,94940.0,0.01205329]
[1745628498803,0.7752265,94941.0,94940.0,0.03188968]
[1745628500111,0.7752265,94941.0,94940.0,0.01205329]
[1745628500306,0.7752265,94941.0,94940.0,0.00492408]
[1745628500507,0.2105309,94939.0,94938.0,0.02839168]
[1745628501218,0.2105309,94939.0,94938.0,0.27418342]
[1745628501219,0.168,94939.0,94938.0,0.27418342]
[1745628501516,0.3785309,94939.0,94938.0,0.23892478]
[1745628501713,0.168,94939.0,94938.0,0.60572478]
[1745628502011,0.0526239,94955.0,94938.0,0.60572478]
[1745628502012,0.2105051,94951.0,94950.0,0.2105037]
[1745628502210,0.3608,94958.0,94949.0,0.0385]
[1745628502404,0.2631218,94956.0,94955.0,0.2104943]
[1745628502604,0.2104977,94956.0,94955.0,0.2104943]
[1745628503811,0.2104772,94965.0,94964.0,0.263086]
[1745628504012,0.2104733,94965.0,94964.0,0.3608]
[1745628504204,0.2104733,94965.0,94964.0,0.466104]
[1745628504911,0.2134733,94965.0,94964.0,0.6765795]
[1745628505114,0.2134733,94965.0,94964.0,0.466104]
[1745628505410,0.2144733,94965.0,94964.0,0.466104]
[1745628505614,0.2144733,94965.0,94964.0,0.3608]
[1745628506213,0.3824733,94965.0,94964.0,0.3608]
[1745628506609,0.4164733,94965.0,94964.0,0.3608]
[1745628507016,0.561304,94965.0,94940.0,0.3608]
[1745628507215,0.2105309,94939.0,94938.0,0.03514016]
[1745628507404,0.2105331,94938.0,94929.0,0.0714]
[1745628507609,0.2811331,94938.0,94929.0,0.0714]
[1745628507816,0.2811331,94938.0,94934.0,0.03488402]
[1745628508116,0.4491331,94938.0,94935.0,0.0374]
[1745628508812,0.4123331,94938.0,94935.0,0.0374]
[1745628509219,0.0001,250000.0,94939.0,0.0526326]
[1745628509220,0.0526281,94949.0,94939.0,0.0526326]
[1745628509415,0.2631368,94949.0,94948.0,0.3608]
[1745628510415,0.2105154,94946.0,94945.0,0.0681]
[1745628512320,0.3785154,94946.0,94945.0,0.0681]
[1745628512515,0.3785154,94946.0,94945.0,0.0711]
[1745628512709,0.3785154,94946.0,94945.0,0.0741]
[1745628514309,0.3785154,94946.0,94945.0,0.0398]
[1745628515822,0.2105331,94938.0,94937.0,0.00526662]
[1745628516208,0.3785331,94938.0,94937.0,0.00526662]
[1745628517022,0.3785331,94938.0,94937.0,0.01026662]
[1745628517208,0.3785331,94938.0,94937.0,0.01426662]
[1745628517810,0.168,94938.0,94937.0,0.22480202]
[1745628518118,0.06804,94943.0,94941.0,0.2105261]
[1745628518119,0.2785634,94943.0,94941.0,0.2105261]
[1745628518309,0.2785634,94943.0,94942.0,0.4356]
[1745628518510,0.2105234,94943.0,94942.0,0.4356]
[1745628518816,0.06804,94955.0,94943.0,0.2105217]
[1745628518817,0.2105172,94946.0,94943.0,0.2105217]
[1745628519021,0.0526261,94951.0,94944.0,0.1264298]
[1745628519238,0.0526251,94953.0,94948.0,0.2105101]
[1745628519422,0.1206643,94955.0,94949.0,0.0738]
[1745628519617,0.2105065,94950.0,94949.0,0.0738]
[1745628520321,0.3785065,94950.0,94949.0,0.0738]
[1745628521425,0.3785065,94950.0,94949.0,0.0758]
[1745628521623,0.3785065,94950.0,94949.0,0.002]
[1745628521919,0.2105309,94939.0,94938.0,0.0344]
[1745628522226,0.2778909,94939.0,94938.0,0.0344]
[1745628522816,0.2105309,94939.0,94938.0,0.0344]
[1745628523120,0.4458909,94939.0,94938.0,0.0414]
[1745628523923,0.168,94939.0,94938.0,0.2519331]
[1745628524115,0.168,94939.0,94938.0,0.183532]
[1745628524314,0.168,94939.0,94938.0,0.3940651]
[1745628526017,0.168,94939.0,94938.0,0.2887331]
[1745628526422,0.3785309,94939.0,94938.0,0.2887331]
[1745628527323,0.3785309,94939.0,94938.0,0.0782]
[1745628528522,0.3785309,94939.0,94938.0,0.007]
[1745628531318,0.2105398,94935.0,94934.0,0.38266232]
[1745628531522,0.2105398,94935.0,94934.0,0.45366232]
[1745628531723,0.2105398,94935.0,94934.0,0.4318]
[1745628531921,0.2105531,94929.0,94924.0,0.0362]
[1745628532221,0.3785531,94929.0,94924.0,0.0362]
[1745628533023,0.4149531,94929.0,94925.0,0.0378]
[1745628533614,0.4149531,94929.0,94925.0,0.2483609]
[1745628533816,0.4149531,94929.0,94925.0,0.0378]
[1745628534026,0.4149531,94929.0,94928.0,0.21213532]
[1745628534321,0.4149531,94929.0,94928.0,0.21713532]
[1745628534519,0.2044,94929.0,94928.0,0.21713532]
[1745628535024,0.4149531,94929.0,94928.0,0.22113532]
[1745628535921,0.4149531,94929.0,94928.0,0.01058002]
[1745628537219,0.4149531,94929.0,94928.0,0.08448002]
[1745628540324,0.168,94929.0,94928.0,0.29503532]
[1745628541130,0.2105443,94933.0,94932.0,0.2105464]
[1745628542220,0.3785443,94933.0,94932.0,0.2105464]
[1745628542417,0.3785443,94933.0,94932.0,0.2145464]
[1745628542617,0.3785443,94933.0,94932.0,0.004]
[1745628542821,0.3785443,94933.0,94932.0,0.2145464]
[1745628543627,0.168,94933.0,94932.0,0.2145464]
[1745628543827,0.168,94933.0,94932.0,0.2185464]
[1745628544227,0.2483295,94940.0,94939.0,0.2105309]
[1745628545125,0.4163295,94940.0,94939.0,0.2105309]
[1745628545527,0.4163295,94940.0,94939.0,0.2125309]
[1745628546221,0.4163295,94940.0,94939.0,0.2145309]
[1745628546420,0.2058,94940.0,94939.0,0.2145309]
[1745628546631,0.168,94940.0,94939.0,0.2145309]
[1745628547131,0.2105287,94940.0,94939.0,0.2145309]
[1745628547826,0.2481234,94943.0,94942.0,0.2105243]
[1745628548023,0.2870234,94943.0,94942.0,0.2105243]
[1745628548225,0.2870234,94943.0,94939.0,0.004]
[1745628548226,0.2445,94943.0,94939.0,0.004]
[1745628548422,0.2105287,94940.0,94939.0,0.004]
[1745628548624,0.5713287,94940.0,94939.0,0.004]
[1745628548830,0.2105531,94929.0,94918.0,0.3608]
[1745628549120,0.3785531,94929.0,94918.0,0.3608]
[1745628549727,0.4531531,94929.0,94918.0,0.3608]
[1745628549929,0.5584971,94929.0,94922.0,0.03456103]
[1745628550327,0.210562,94925.0,94924.0,0.19040974]
[1745628551134,0.2105686,94922.0,94921.0,0.03464817]
[1745628551325,0.2105731,94920.0,94919.0,0.2105744]
[1745628552031,0.2851731,94920.0,94919.0,0.2105744]
[1745628552225,0.2851731,94920.0,94919.0,0.2453097]
[1745628552729,0.4531731,94920.0,94919.0,0.2453097]
[1745628552921,0.4531731,94920.0,94919.0,0.2463097]
[1745628553330,0.4531731,94920.0,94919.0,0.2473097]
[1745628553530,0.4531731,94920.0,94919.0,0.2846097]
[1745628553936,0.4531731,94920.0,94919.0,0.0740353]
[1745628554634,0.4531731,94920.0,94919.0,0.0367353]
[1745628557028,0.168,94920.0,94919.0,0.3224106]
[1745628557232,0.168,94920.0,94919.0,0.3584106]
[1745628559225,0.2105709,94921.0,94920.0,0.2632114]
[1745628559425,0.2822073,94923.0,94922.0,0.2105686]
[1745628561831,0.3213073,94923.0,94922.0,0.2105686]
[1745628562336,0.3213073,94923.0,94922.0,0.2115686]
[1745628562540,0.3213073,94923.0,94922.0,0.2125686]
[1745628562835,0.3213073,94923.0,94922.0,0.5733686]
[1745628564833,0.07164,94923.0,94922.0,0.5733686]
[1745628566440,0.07164,94923.0,94922.0,0.9341686]
[1745628566839,0.2105583,94927.0,94926.0,0.2105597]
[1745628567730,0.07164,94937.0,94936.0,0.2105376]
[1745628568033,0.07164,94937.0,94936.0,0.5713376]
[1745628568034,0.2821754,94937.0,94936.0,0.5713376]
[1745628568640,0.2821754,94937.0,94936.0,0.6538376]
[1745628569030,0.2841754,94937.0,94936.0,0.6538376]
[1745628569234,0.2861754,94937.0,94936.0,0.6538376]
[1745628571634,0.3288754,94937.0,94936.0,0.6538376]
[1745628572235,0.4968754,94937.0,94936.0,0.6538376]
[1745628573133,0.11834,94937.0,94936.0,0.6538376]
[1745628573344,0.0467,94937.0,94936.0,0.6538376]
[1745628573639,0.2572354,94937.0,94936.0,0.3608]
[1745628573832,0.0467,94937.0,94936.0,0.2105376]
[1745628574030,0.2147,94937.0,94936.0,0.2105376]
[1745628574333,0.2562,94937.0,94936.0,0.2105376]
[1745628574738,0.4667354,94937.0,94936.0,0.2507376]
[1745628575446,0.2987354,94937.0,94936.0,0.2507376]
[1745628575847,0.2987354,94937.0,94936.0,0.0402]
[1745628578047,0.0526416,94923.0,94913.0,0.3608]
[1745628578240,0.2105908,94912.0,94911.0,0.0392]
[1745628578447,0.210593,94911.0,94908.0,0.0404]
[1745628578648,0.249393,94911.0,94908.0,0.0404]
[1745628579145,0.417393,94911.0,94908.0,0.09291838]
[1745628580547,0.417393,94911.0,94910.0,0.00205362]
[1745628580947,0.417393,94911.0,94910.0,0.00405362]
[1745628581147,0.168,94911.0,94910.0,0.21464882]
[1745628581542,0.168,94911.0,94910.0,0.25524882]
[1745628581744,0.168,94911.0,94910.0,0.29744882]
[1745628582055,0.07192,94927.0,94926.0,0.2105597]
[1745628582351,0.07192,94927.0,94926.0,0.5713597]
[1745628583044,0.07192,94927.0,94926.0,0.6518597]
[1745628583547,0.0425,94928.0,94927.0,0.2105575]
[1745628583748,0.0425,94928.0,94927.0,0.2914575]
[1745628583945,0.0526354,94935.0,94933.0,0.2105427]
[1745628584145,0.2105398,94935.0,94934.0,0.291442]
[1745628584655,0.2105398,94935.0,94934.0,0.652242]
[1745628585246,0.2530398,94935.0,94934.0,0.652242]
[1745628586147,0.4210398,94935.0,94934.0,0.652242]
[1745628586954,0.4250398,94935.0,94934.0,0.652242]
[1745628587460,0.2145,94935.0,94934.0,0.652242]
[1745628588159,0.0465,94935.0,94934.0,0.652242]
[1745628592266,0.14279863,94935.0,94934.0,0.652242]
[1745628598163,0.10329863,94935.0,94934.0,0.820242]
[1745628599262,0.10329863,94935.0,94934.0,0.652242]
[1745628600067,0.007,94935.0,94934.0,0.652242]
[1745628602162,0.007,94935.0,94934.0,0.820242]
[1745628603165,0.007,94935.0,94934.0,0.652242]
[1745628604060,0.007,94935.0,94934.0,0.820242]
[1745628610167,0.007,94935.0,94934.0,0.652242]
[1745628610370,0.007,94935.0,94934.0,0.291442]
[1745628610572,0.007,94935.0,94934.0,1.013042]
[1745628611063,0.007,94935.0,94934.0,1.181042]
[1745628612873,1e-07,94935.0,94934.0,1.181042]
[1745628613069,0.042,94954.0,94953.0,0.2104999]
[1745628613575,0.042,94954.0,94949.0,0.3608]
[1745628613873,0.2105065,94950.0,94949.0,0.3608]
[1745628614065,0.168,94950.0,94949.0,0.3608]
[1745628614270,0.168,94950.0,94949.0,0.5713087]
[1745628615271,0.26929863,94950.0,94949.0,0.5713087]
[1745628616772,0.26729863,94950.0,94949.0,0.5713087]
[1745628617374,0.26529863,94950.0,94949.0,0.5723087]
[1745628618277,0.26429863,94950.0,94949.0,0.5723087]
[1745628619977,0.47480513,94950.0,94949.0,0.3618]
[1745628620170,0.26429863,94950.0,94949.0,0.3618]
[1745628620371,0.47480513,94950.0,94949.0,0.3618]
[1745628620680,0.26429863,94950.0,94949.0,0.5723087]
[1745628620975,0.26429863,94950.0,94949.0,0.5743087]
[1745628621780,0.168,94950.0,94949.0,0.5743087]
[1745628622375,0.168,94950.0,94949.0,0.3638]
[1745628622586,0.3785065,94950.0,94949.0,0.3638]
[1745628624380,0.168,94950.0,94949.0,0.003]